Cogmind - Beta 13 @@@ ROGUE MODE // 2024.06.29 @ 17:05:55 Player: Hilbert Result: Core destroyed Performance ------------- Evolutions (2) 1000 Regions Visited (4) 800 Robots Destroyed (0) 0 Value Destroyed (0) 0 Prototype IDs (0) 0 Alien Tech Used (0) 0 Bonus (470) 470 TOTAL SCORE: 2270 Bonus ------- Pacifist 470 Cogmind --------- Core Integrity 0/550 Matter 295/300 Energy 100/100 System Corruption 0% Temperature Cool (0) Movement Core (50) Location -8/Materials Parts ------- > --- POWER (1) -------- (None) > --- PROPULSION (6) --- (None) > --- UTILITY (2) ------ (None) > --- WEAPON (2) ------- (None) > --- INVENTORY (5) ---- Light Ion Engine Assault Rifle Great Axe Peak State ------------ > --- POWER ------------ (None) > --- PROPULSION ------- Aluminum Leg Aluminum Leg > --- UTILITY ---------- Small Storage Unit > --- WEAPON ----------- Assault Rifle Light Assault Rifle > --- INVENTORY -------- Ion Engine Light Ion Engine Light Treads Light Treads Wheel Compact Wheel Assault Rifle [Rating: 5] Favorites ----------- Power None Propulsion Aluminum Leg Treads Light Treads Leg Aluminum Leg Wheel Wheel Utility Small Storage Unit Storage Small Storage Unit Weapon Assault Rifle Ballistic Gun Assault Rifle Slashing Weapon Great Axe Build | -11 -10 -9 -9 -8 ------- Run | Yrd Mat Mat Min Mat Slots Evolved 4 | . . 2 . 2 Power . | . . . . . Propulsion 4 | . . 2 . 2 Utility . | . . . . . Weapon . | . . . . . Parts Attached 4 | . . 2 . 2 Power . | . . . . . Engine . | . . . . . Core . | . . . . . Reactor . | . . . . . Propulsion 3 | . . 2 . 1 Treads 1 | . . 1 . . Leg . | . . . . . Wheel 2 | . . 1 . 1 Hover . | . . . . . Flight . | . . . . . Utility . | . . . . . Device . | . . . . . Storage . | . . . . . Processor . | . . . . . Hackware . | . . . . . Protection . | . . . . . Artifact . | . . . . . Weapon 1 | . . . . 1 Energy Gun . | . . . . . Energy Cannon . | . . . . . Ballistic Gun . | . . . . . Ballistic Cannon . | . . . . . Launcher . | . . . . . Special Weapon . | . . . . . Impact Weapon . | . . . . . Slashing Weapon 1 | . . . . 1 Piercing Weapon . | . . . . . Special Melee Weapon . | . . . . . Unidentified Prototypes . | . . . . . Parts Lost 5 | . . . 1 4 Power . | . . . . . Propulsion 5 | . . . 1 4 Utility . | . . . . . Weapon . | . . . . . Highest Loss Streak 4 | . . . 1 4 To Critical Strikes . | . . . . . Average Slot Usage (%) 34 | . 28 44 44 19 Treads 7 | . . 11 11 4 Leg 18 | . 28 22 22 4 Wheel 8 | . . 11 11 10 Naked Turns 18 | . . . . 18 Heaviest Build . | . . . . . Greatest Support 3 | 3 3 3 3 3 Greatest Overweight (x) . | . . . . . Average Overweight (x) . | . . . . . Largest Inventory Capacity 8 | 8 5 5 5 5 Average Capacity 5 | 6 5 5 5 5 Most Carried 7 | 7 5 4 3 3 Average Carried 3 | 6 5 3 3 2 Final Capacity 5 | 5 5 5 5 5 Final Carried 5 | 5 5 3 3 3 Class Distribution -------------------- 100% | Mutant Dominant Class ---------------- Mutant | -10/Materials Mutant | -9/Materials Mutant | -9/Mines Mutant | -8/Materials Resources | -11 -10 -9 -9 -8 ----------- Run | Yrd Mat Mat Min Mat Matter Collected 220 | 200 . . 17 3 Remotely . | . . . . . Salvage Created . | . . . . . Parts . | . . . . . Haulers Intercepted . | . . . . . Recyclers Shooed . | . . . . . Parts Field Recycled . | . . . . . Retrieved Matter . | . . . . . Parts Self-Destructed . | . . . . . Prevented . | . . . . . Kills | -11 -10 -9 -9 -8 ------- Run | Yrd Mat Mat Min Mat Combat Hostiles Destroyed . | . . . . . Classes Destroyed . | . . . . . Best Kill Streak . | . . . . . Combat Bots Only . | . . . . . Max Kills in Single Turn . | . . . . . Gunslinging . | . . . . . Exploded . | . . . . . Melee . | . . . . . Uniques/NPCs Destroyed . | . . . . . Combat | -11 -10 -9 -9 -8 -------- Run | Yrd Mat Mat Min Mat Hostile Shots Fired 168 | . 10 39 21 98 Missed 72 | . 4 21 10 37 Damage Taken 1096 | . 76 142 122 756 Core 698 | . 45 53 50 550 Absorbed by Shields . | . . . . . Core Remaining (%) 85 | 100 82 . 74 . Volleys Fired . | . . . . . Largest . | . . . . . Hottest . | . . . . . Shots Fired . | . . . . . Gun . | . . . . . Cannon . | . . . . . Launcher . | . . . . . Special . | . . . . . Kinetic . | . . . . . Thermal . | . . . . . Explosive . | . . . . . Electromagnetic . | . . . . . Robot Hit Streak . | . . . . . Robot Miss Streak . | . . . . . Penetration Max . | . . . . . Secondary Targets . | . . . . . Shots Hit Robots . | . . . . . Core Hits . | . . . . . Critical Kills . | . . . . . Critical Parts Destroyed . | . . . . . Critical Strikes . | . . . . . Melee Attacks . | . . . . . Impact . | . . . . . Slashing . | . . . . . Piercing . | . . . . . Sneak Attacks . | . . . . . Combat Hostiles . | . . . . . Follow-up Attacks . | . . . . . Damage Inflicted 20 | . 5 . . 15 Guns . | . . . . . Cannons . | . . . . . Explosions . | . . . . . Melee . | . . . . . Ramming 20 | . 5 . . 15 Kinetic . | . . . . . Thermal . | . . . . . Explosive . | . . . . . Electromagnetic . | . . . . . Impact . | . . . . . Slashing . | . . . . . Piercing . | . . . . . Highest Corruption . | . . . . . Average Corruption . | . . . . . Corruption Purged . | . . . . . Corruption Blocked . | . . . . . Overload Shots . | . . . . . Overflow Damage 2 | . . . . 2 Projectiles . | . . . . . Explosions . | . . . . . Melee 2 | . . . . 2 Knockbacks . | . . . . . Impact . | . . . . . Kinetic . | . . . . . Secondary . | . . . . . Self-Inflicted Damage 9 | . 2 . . 7 Shots . | . . . . . Rammed 4 | . 1 1 . 2 Targets Rammed 4 | . 1 1 . 2 Kicked . | . . . . . Crushed . | . . . . . Highest Temperature 5 | . . . . 5 Average Temperature 5 | . . . . 5 Received Heat Transfer 240 | . 39 9 12 180 Siege Activations . | . . . . . Robots Corrupted . | . . . . . Combat Hostiles . | . . . . . Parts Fried . | . . . . . Impact Corruptions 1 | . . . . 1 Robots Melted . | . . . . . Combat Hostiles . | . . . . . Parts Melted . | . . . . . Heat Transferred . | . . . . . Parts Sabotaged . | . . . . . Parts Stolen . | . . . . . Parts Stripped . | . . . . . Power Chain Reactions . | . . . . . Alert | -11 -10 -9 -9 -8 ------- Run | Yrd Mat Mat Min Mat Peak Influence 136 | . 30 102 39 136 Initial 39 | . . 12 39 11 Average 34 | . 19 54 38 23 Maximum Alert Level . | . . . . . Low Security (%) 100 | 100 100 100 100 100 Level 1 . | . . . . . Level 2 . | . . . . . Level 3 . | . . . . . Level 4 . | . . . . . Level 5 . | . . . . . High Security . | . . . . . Max Security . | . . . . . Squads Dispatched 4 | . 1 1 . 2 Investigation 1 | . 1 . . . Extermination . | . . . . . Reinforcement 3 | . . 1 . 2 Assault . | . . . . . Garrison . | . . . . . Intercept . | . . . . . Searches Triggered . | . . . . . Construction Impeded . | . . . . . Haulers Reinforced . | . . . . . Active Scanning Responses . | . . . . . Cargo Convoy Interrupts . | . . . . . Stealth | -11 -10 -9 -9 -8 --------- Run | Yrd Mat Mat Min Mat Distress Signals 2 | . 1 1 . . Communications Jammed . | . . . . . Distress Signals . | . . . . . Times Spotted 52 | . 7 9 11 25 Peak Tracking Total 19 | . 6 7 10 19 Tactical Retreats 3 | . . 1 1 1 Traps | -11 -10 -9 -9 -8 ------- Run | Yrd Mat Mat Min Mat Traps Triggered 1 | . 1 . . . Indirectly . | . . . . . Trap Hack Attempts . | . . . . . Triggered . | . . . . . Disarmed . | . . . . . Reprogrammed . | . . . . . Reused . | . . . . . Traps Extracted . | . . . . . Installed . | . . . . . Triggered . | . . . . . Machines | -11 -10 -9 -9 -8 ---------- Run | Yrd Mat Mat Min Mat Machines Disabled . | . . . . . Max in Single Turn . | . . . . . Machines Repaired . | . . . . . Machines Dismantled . | . . . . . Machines Sabotaged . | . . . . . Overloaded Fab Kills . | . . . . . Hacking | -11 -10 -9 -9 -8 --------- Run | Yrd Mat Mat Min Mat Machines Accessed . | . . . . . Terminals . | . . . . . Fabricators . | . . . . . Repair Stations . | . . . . . Recycling Units . | . . . . . Scanalyzers . | . . . . . Garrison Access . | . . . . . Total Hacks . | . . . . . Successful . | . . . . . Failed . | . . . . . Catastrophic . | . . . . . Database Lockouts . | . . . . . Manual . | . . . . . Terminals . | . . . . . Fabricators . | . . . . . Repair Stations . | . . . . . Recycling Units . | . . . . . Scanalyzers . | . . . . . Garrison Access . | . . . . . Terminal Hacks . | . . . . . Fabricator Hacks . | . . . . . Repair Station Hacks . | . . . . . Recycling Unit Hacks . | . . . . . Scanalyzer . | . . . . . Garrison Access Hacks . | . . . . . Unauthorized Hacks . | . . . . . Terminals . | . . . . . Fabricators . | . . . . . Repair Stations . | . . . . . Recycling Units . | . . . . . Scanalyzers . | . . . . . Garrison Access . | . . . . . Data Cores Recovered . | . . . . . Used . | . . . . . Hacking Detections . | . . . . . Full Trace Events . | . . . . . Feedback Events . | . . . . . Feedback Blocked . | . . . . . Robot Schematics Acquired . | . . . . . Robots Built . | . . . . . Authchips . | . . . . . Time . | . . . . . Total Robot Build Rating . | . . . . . Part Schematics Acquired . | . . . . . Parts Built . | . . . . . Authchips . | . . . . . Time . | . . . . . Total Part Build Rating . | . . . . . Parts Repaired . | . . . . . Time . | . . . . . Parts Recycled . | . . . . . Recycled Matter . | . . . . . Retrieved Matter . | . . . . . Retrieved Components . | . . . . . Parts Scanalyzed . | . . . . . Part Schematics Acquired . | . . . . . Parts Damaged . | . . . . . Bothacking | -11 -10 -9 -9 -8 ------------ Run | Yrd Mat Mat Min Mat Used RIF Installer . | . . . . . Robots Hacked . | . . . . . Non-combat . | . . . . . Combat . | . . . . . Robot Hacks Applied . | . . . . . Relay Couplers Released . | . . . . . Fabnet Peak Effective % . | . . . . . Robots Rewired . | . . . . . Allies Hacked . | . . . . . Hacks Repelled . | . . . . . Allies | -11 -10 -9 -9 -8 -------- Run | Yrd Mat Mat Min Mat Total Allies . | . . . . . Largest Group . | . . . . . Highest-Rated Group . | . . . . . Highest-Rated Ally . | . . . . . Total Orders . | . . . . . Ally Attacks . | . . . . . Total Damage . | . . . . . Kills . | . . . . . Allies Corrupted . | . . . . . Allies Melted . | . . . . . Intel | -11 -10 -9 -9 -8 ------- Run | Yrd Mat Mat Min Mat Robot Analysis Total . | . . . . . Derelict Logs Recovered 1 | . . . 1 . Drone Launches . | . . . . . Drone Recoveries . | . . . . . Exploration | -11 -10 -9 -9 -8 ------------- Run | Yrd Mat Mat Min Mat Turns Passed 312 | 2 60 66 107 77 Spaces Moved 591 | 1 118 125 203 144 Core 591 | 1 118 125 203 144 Treads . | . . . . . Legs . | . . . . . Wheels . | . . . . . Hover . | . . . . . Flight . | . . . . . Fastest Speed 50 | 50 50 50 50 50 Average Speed 50 | 50 50 50 50 50 Slowest Speed 50 | 50 50 50 50 50 Overloaded Moves . | . . . . . Propulsion Burnouts . | . . . . . Robots Hopped . | . . . . . Cave-ins Triggered . | . . . . . Exploration Rate (%) 27 | 2 33 24 47 29 Regions Visited 4 Branch Regions 1 Pre-discovered Areas . | . . . . . Known Exits Taken . | . . . . . Unknown Exits Taken 4 | 1 1 1 1 . Scrap Searched . | . . . . . Spaces Dug . | . . . . . Terrain Destroyed . | . . . . . Melee . | . . . . . Projectile . | . . . . . AOE . | . . . . . Terrain Rammed . | . . . . . Walls Destroyed . | . . . . . Machines Disabled . | . . . . . Actions | -11 -10 -9 -9 -8 --------- Run | Yrd Mat Mat Min Mat Total 604 | 4 118 127 207 148 Wait . | . . . . . Move 587 | . 117 124 202 144 Hop . | . . . . . Pick Up . | . . . . . Fast Attach 1 | . . . . 1 Attach 3 | . . 2 . 1 Detach 2 | 1 . . . 1 Swap . | . . . . . Drop 3 | 3 . . . . Fire . | . . . . . Melee . | . . . . . Ram 3 | . 1 1 . 1 Kick . | . . . . . Crush . | . . . . . Escape Stasis . | . . . . . Rewire 5 | . . . 5 . Trap . | . . . . . Miscellaneous . | . . . . . Route ------- -11/Scrapyard -10/Materials (discovered 2 exits: [*Mat] / [*Min]) -9/Materials -9/Mines -8/Materials History --------- Turn | Location | Event 3 | -11/Scrapyard | Discovered new exit (range 0) 3 | -11/Scrapyard | Entered Materials 19 | -10/Materials | Discovered new exit (range 10) 56 | -10/Materials | Discovered new exit (range 16) 63 | -10/Materials | Entered another Materials area 63 | -9/Materials | Evolved 2 slots: Propulsion x2 121 | -9/Materials | Discovered new exit (range 16) 129 | -9/Materials | Entered Mines 151 | -9/Mines | Assembled infested the area 180 | -9/Mines | Learned Materials emergency access door positions 181 | -9/Mines | Met 8R-AWN 186 | -9/Mines | A weapon hastily lodged in a ceiling crevice suddenly fell to the ground 230 | -9/Mines | Discovered new exit (range 12) 236 | -9/Mines | Entered Materials 236 | -8/Materials | Evolved 2 slots: Propulsion x2 294 | -8/Materials | Core integrity fell below 50% 301 | -8/Materials | Core integrity fell below 20% 312 | -8/Materials | Build established: Mutant 313 | -8/Materials | Core destroyed Last Messages --------------- 00272_ T-07 Excavator is excavating. 00272_ Penetrated by Slug. 00273_ Acquired 3 matter. 00275_ Penetrated by Slug. 00275_ Lgt. Treads destroyed. 00275_ Aluminum Leg destroyed. 00277_ U-05 Engineer builds a Wall. 00282_ Slammed into R-06 Scavenger. 00287_ K-01 Serf collects debris. 00290_ Acquired Great Axe. 00292_ K-01 Serf collects debris. 00295_ Com. Wheel destroyed. 00298_ S-10 Pest destroyed. 00298_ K-01 Serf collects debris. 00312_ O-24 Administrator: "IFF HANDSHAKE FAILED. SECURING TERMINAL." 00313_ Slammed into O-24 Administrator. 00313_ Destroyed Hacking Suite. 00313_ O-24 Administrator system corrupted by crushing effect. Map ----- +----------------------------------------------------+ | ??#!!! #????????????????????????????????????? | | ??#!! +????????????????????????????????????? | | ??#!! #????????????????????????????????????? | | ??# #????????????????????????????????????? | | ??########/##????????????????????????????????????? | | ?????????# #?????????????????????????????????????? | | ??########%##????????????????????????????????????? | | ??# #????????????????????????????????????? | | ??+ +????????????????????????????????????? | | ??# #????????????????????????????????????? | | ??# #????????????????????????????????????? | | ??# ##+###???????????????????????????????? | | ??# ^ #???????????????????????????????? | | ### +???????????????????????????????? | | * ^ #???????????????????????????????? | | / =% !! "T" #???????????????????????????????? | | ! [ !! """ #???????????????????????????????? | | ! [#???????????????????????????????? | | ] ] ??????????????????????????????? | | ] ### ########??????????????????????????????? | | ### ####+#??????????#######????????????????????? | | ??# # ????????????# ! ########+###?????????? | | ??# / ??????????????# ?????????? | | ??# #???????????????# g ??????????? | | ### #???????????????# Ygo a ???????????????? | | # #???????????????# @ #????????????????????? | | # #??????????????####/#####??????????????????? | | #### #??????????????# #??????????????????? | | ???# #??????????????#"" ! #??????????????????? | | ???+ #??????????????#"T #??????????????????? | | ???# ################"" #??????????????????? | | ???+ /s [!! #??????????????????? | | ???#### ######### [!! #????????????+?????? | | ??????# #???????# !!! #??????????????????? | | ??????#! !#???????# #??????????????????? | | ??????##!!!!##???????# #??????????????????? | | ???????######????????#####Y####??????????????????? | | ??????????????????????????##?????????????????????? | | | | | | | | | | | | | | | | | | | | | | | | | +----------------------------------------------------+ Best States ------------- Heat Dissipation 31 Energy Generation 5 Energy Capacity 100 Matter Stores 300 Matter Capacity 300 Sight Range 16 Terrain Scan Density 10 Evasion (%) 50 Item Schematics ----------------- None Robot Schematics ------------------ None Fabricated ------------ Nothing Alien Tech Used ----------------- None Achievements -------------- None Challenges ------------ None Game ------ Seed AlphaIntegrityAxe Manual? 0 Play Time 00:07:38 Cumulative 49.7 hours Start 2024.06.29 @ 16:59:52 End 2024.06.29 @ 17:05:55 Sessions 1 Manual Loads 0 Difficulty Rogue Special Mode None Game No. 100 Rogue 100 Adventurer 0 Explorer 0 Win Type - Total 2 Types 2/0/0/0/0/0/0/0/0 Lore% 40 Gallery% 40 Achievement% 33 Wizard Run 0 Options --------- Layout 1 ASCII 1 Keyboard 1 Movement Vi Keybinds 1 Fullscreen 1 Font 24/Smallcaps Map View 50x35 Zoom Use 0% Tactical HUD 1 Map Filters NONE Filters NONE Steam 1 RUN: d9e92606-2fd3-43ca-abd4-ca178ec21ff5